bitfinex-derivatives/quotes_ETHF0:USTF0_20241004
["timestamp","ask_amount","ask_price","bid_price","bid_amount"]
[1728055047101,3.6202,2394.6,2394.1,3.2078]
[1728055047396,3.6202,2394.6,2393.8,3.2078]
[1728055047602,0.41773,2394.0,2393.9,0.41774]
[1728055047908,1.04419,2394.3,2394.0,0.41771]
[1728055048093,0.4177,2394.2,2394.1,0.4177]
[1728055048896,4.66429,2394.6,2393.8,3.2078]
[1728055048897,3.6202,2394.6,2393.8,3.2078]
[1728055049098,1.04411,2394.5,2393.8,3.2078]
[1728055049289,0.83003,2394.6,2394.5,0.41764]
[1728055049489,0.83003,2394.6,2394.2,0.41768]
[1728055049490,0.41767,2394.4,2394.2,0.41768]
[1728055049696,0.4124,2394.6,2394.0,3.26]
[1728055049895,0.4177,2394.2,2394.1,0.4177]
[1728055050095,0.41771,2394.1,2394.0,3.67772]
[1728055050298,1.04421,2394.3,2394.0,3.67772]
[1728055050299,0.41771,2394.2,2394.0,3.67773]
[1728055050596,1.04421,2394.3,2394.0,3.67773]
[1728055050801,0.41769,2394.3,2394.1,0.41771]
[1728055051010,4.25194,2394.5,2394.0,3.26]
[1728055051196,0.41771,2394.1,2394.0,3.67772]
[1728055051494,0.41771,2394.1,2394.0,0.41772]
[1728055052201,0.41769,2394.2,2394.1,0.4177]
[1728055052401,4.25194,2394.5,2393.8,3.2078]
[1728055052602,0.4177,2394.2,2394.1,0.41771]
[1728055052895,3.2078,2394.5,2393.8,3.2078]
[1728055053101,0.41767,2394.3,2394.2,0.41769]
[1728055053303,0.41771,2394.2,2394.1,0.4177]
[1728055054099,1.04416,2394.4,2393.9,1.04436]
[1728055054301,0.41768,2394.3,2394.2,0.41768]
[1728055054491,0.41771,2394.2,2394.1,0.4177]
[1728055054812,1.04419,2394.3,2393.8,3.2078]
[1728055055004,0.41772,2394.1,2394.0,0.41771]
[1728055055499,0.81542,2394.1,2394.0,0.41771]
[1728055056005,0.81542,2394.1,2393.8,4.25221]
[1728055056006,4.25193,2394.5,2393.9,1.04434]
[1728055056304,4.25193,2394.5,2394.2,0.41768]
[1728055056305,0.41769,2394.3,2394.2,0.41768]
[1728055058303,0.41767,2394.4,2393.9,5.05437]
[1728055058495,0.41769,2394.3,2394.2,0.41767]
[1728055059196,3.10598847,2394.5,2393.9,4.01]
[1728055059499,0.81535,2394.5,2394.4,0.41766]
[1728055059694,0.81534,2394.5,2394.4,0.41766]
[1728055059998,4.14310847,2394.7,2394.4,0.41766]
[1728055059999,2.70828847,2394.8,2394.4,4.176]
[1728055060205,0.41762,2394.7,2394.6,0.4176]
[1728055060903,0.4176,2394.8,2394.7,0.41759]
[1728055062101,0.41762,2394.7,2394.6,0.4176]
[1728055064207,0.8117,2395.0,2394.6,4.176]
[1728055064409,0.41755,2395.1,2395.0,0.41755]
[1728055064810,0.41759,2394.9,2394.8,0.41757]
[1728055065106,0.41764,2394.6,2394.5,0.41762]
[1728055066404,0.8182,2394.7,2394.6,0.41762]
[1728055067199,0.4006,2394.7,2394.1,0.1398252]
[1728055067400,0.41771,2394.2,2394.1,0.4177]
[1728055067597,0.41773,2394.1,2394.0,0.41772]
[1728055067802,0.4006,2394.1,2394.0,0.41772]
[1728055068504,0.3979,2394.4,2393.9,1.04436]
[1728055068702,0.7996,2394.5,2394.4,0.41766]
[1728055068903,1.21724,2394.5,2394.4,0.41766]
[1728055069308,2.73200859,2394.8,2394.4,4.176]
[1728055069511,0.41761,2394.7,2394.5,0.41763]
[1728055069825,0.41762,2394.6,2394.5,0.41763]
[1728055070009,0.41762,2394.6,2394.2,1.43511]
[1728055070210,0.41762,2394.6,2394.5,0.41764]
[1728055070506,1.04406,2394.6,2394.2,0.41769]
[1728055070707,1.04406,2394.6,2393.9,1.47036]
[1728055070708,1.04415,2394.4,2393.9,0.426]
[1728055070898,1.04415,2394.4,2393.9,0.41774]
[1728055070899,0.41774,2394.0,2393.9,0.41774]
[1728055071707,1.04425,2394.2,2393.8,3.6509]
[1728055071900,1.04425,2394.2,2393.6,3.67778]
[1728055071901,0.41778,2393.7,2393.6,3.67778]
[1728055072105,1.04428,2394.1,2393.7,0.41778]
[1728055072106,0.41777,2393.8,2393.7,0.41778]
[1728055072305,1.04437,2393.9,2393.5,3.2078]
[1728055072512,0.41777,2393.8,2393.7,0.41777]
[1728055072818,0.41777,2393.8,2393.6,3.67779]
[1728055073017,2.73200859,2394.1,2393.7,3.26]
[1728055073307,0.41771,2394.2,2394.1,0.4177]
[1728055073510,0.41774,2394.0,2393.9,0.41773]
[1728055074013,1.04426,2394.2,2393.7,0.4266]
[1728055074218,0.41777,2393.8,2393.7,0.41776]
[1728055074413,0.41776,2393.8,2393.7,0.41776]
[1728055077716,0.4061,2393.9,2393.8,0.41776]
[1728055077916,0.82384,2393.9,2393.8,0.41776]
[1728055078309,2.73200859,2394.3,2394.2,0.41769]
[1728055078522,2.73200859,2394.7,2394.6,0.41762]
[1728055078819,0.4278,2394.8,2394.7,0.4176]
[1728055079607,0.84539,2394.8,2394.7,0.4176]
[1728055079813,0.4278,2394.8,2394.4,3.2078]
[1728055080321,0.8454,2394.8,2394.7,0.4176]
[1728055080511,0.41761,2394.7,2394.6,0.41761]
[1728055080913,0.4278,2394.8,2394.4,3.2078]
[1728055081113,0.4278,2394.8,2393.4,3.2078]
[1728055081114,1.04423,2394.3,2393.4,3.2078]
[1728055081316,2.73318841,2394.4,2394.3,0.41767]
[1728055081517,3.15083841,2394.5,2394.4,0.41766]
[1728055081704,1.04407,2394.6,2394.5,0.41764]
[1728055081705,3.15081841,2394.6,2394.5,0.41764]
[1728055081911,4.20499841,2394.8,2394.2,1.04424]
[1728055082104,4.20499841,2394.8,2394.4,0.41765]
[1728055082105,1.46171,2394.6,2394.4,0.41765]
[1728055082310,1.46171,2394.6,2394.0,4.2521]
[1728055082311,0.41769,2394.3,2394.2,0.41767]
[1728055082520,0.41769,2394.3,2394.0,0.41772]
[1728055082521,0.41771,2394.1,2394.0,0.41772]
[1728055082818,1.04422,2394.3,2393.9,0.3957]
[1728055082819,0.4177,2394.2,2394.1,0.41769]
[1728055083117,0.41772,2394.1,2394.0,0.41771]
[1728055083323,0.41773,2394.0,2393.9,0.3957]
[1728055083616,0.41773,2394.0,2393.9,0.41774]
[1728055084419,0.41772,2394.1,2394.0,0.41771]
[1728055084623,1.46495,2394.2,2393.7,1.04445]
[1728055084826,0.41774,2394.0,2393.9,0.41773]
[1728055085018,1.04434,2394.0,2393.8,0.41775]
[1728055085320,0.41777,2393.9,2393.8,0.41775]
[1728055085918,0.8384,2394.2,2394.1,0.41771]
[1728055086122,0.83839,2394.2,2394.1,0.41771]
[1728055087413,0.41774,2394.0,2393.9,0.41773]
[1728055087812,0.41772,2394.1,2394.0,0.41771]
[1728055088024,4.64265,2394.4,2394.3,0.41767]
[1728055088025,3.54154841,2394.4,2394.3,0.41767]
[1728055088219,0.80836,2394.4,2394.3,0.41767]
[1728055089213,0.41769,2394.3,2394.2,0.41767]
[1728055089416,0.80836,2394.4,2394.3,0.41767]
[1728055089623,0.80836,2394.4,2393.9,4.25215]
[1728055089624,0.41774,2394.0,2393.9,0.41773]
[1728055089928,0.41771,2394.2,2394.1,0.41769]
[1728055090129,4.1768,2394.2,2393.7,3.2078]
[1728055090420,0.41774,2394.0,2393.9,0.41773]
[1728055091018,0.41771,2394.2,2394.1,0.4177]
[1728055092016,0.41772,2394.1,2394.0,0.41771]
[1728055092221,3.77741841,2394.3,2393.7,3.2078]
[1728055092420,0.4178,2393.7,2393.6,0.41779]
[1728055093120,3.15091841,2394.0,2393.6,5.22209]
[1728055093321,3.15091841,2394.0,2393.3,3.2078]
[1728055093322,3.15091841,2394.1,2394.0,0.41773]
[1728055093527,0.41773,2394.1,2394.0,0.41773]
[1728055093719,3.15091841,2394.1,2394.0,0.41773]
[1728055094024,0.41776,2393.9,2393.8,0.41775]
[1728055094330,3.77746841,2394.1,2393.6,0.4088]
[1728055094331,0.41774,2394.0,2393.9,0.41773]
[1728055095126,0.41774,2394.0,2393.9,4.59453]
[1728055095422,5.07184,2394.2,2394.1,0.41771]
[1728055095423,1.2375,2394.2,2394.1,0.41771]
[1728055095628,0.41772,2394.1,2394.0,0.41771]
[1728055096021,4.59452,2394.1,2393.6,0.4088]
[1728055096220,0.41778,2393.8,2393.7,0.41775]
[1728055098031,1.04438,2393.9,2393.4,3.26]
[1728055098230,0.41782,2393.5,2393.4,0.41782]
[1728055098433,0.41778,2393.7,2393.6,0.41778]
[1728055098935,2.73318841,2393.9,2393.3,4.0265]
[1728055099128,0.4178,2393.6,2393.5,0.41781]
[1728055099521,0.4061,2393.7,2393.3,4.0265]
[1728055099736,0.4061,2393.7,2393.6,0.4178]
[1728055100039,0.82388,2393.7,2393.6,0.4178]
[1728055101336,3.2078,2393.9,2393.4,1.04459]
[1728055101559,2.73318841,2394.1,2393.8,3.26]
[1728055101840,3.82481203,2394.5,2393.8,3.26]
[1728055101841,2.73318841,2394.5,2394.1,0.41771]
[1728055102030,3.13928841,2394.8,2394.4,3.26]
[1728055102230,0.4176,2394.7,2394.4,3.26]
[1728055102430,0.4061,2394.8,2394.6,0.41762]
[1728055102636,0.4061,2394.8,2394.4,3.26]
[1728055102833,0.41763,2394.6,2394.5,0.41764]
[1728055103025,0.41762,2394.6,2394.5,0.41764]
[1728055103338,0.41765,2394.5,2394.0,3.26]
[1728055103540,3.13928841,2394.8,2394.6,0.41761]
[1728055103541,2.73318841,2394.8,2394.6,0.41761]
[1728055103729,0.41762,2394.7,2394.5,0.41763]
[1728055104037,3.55668841,2394.9,2394.0,4.14992441]
[1728055104224,0.4176,2394.8,2394.6,0.41762]
[1728055104430,0.8235,2394.9,2394.5,0.41763]
[1728055104635,1.86745,2394.9,2394.1,1.04428]
[1728055105024,0.41761,2394.7,2394.5,0.41762]
[1728055105228,0.41761,2394.7,2394.6,0.41762]
[1728055105431,4.60063841,2394.9,2394.0,1.04431]
[1728055105636,7.2178,2394.1,2393.4,1.05585139]
[1728055105936,4.01,2393.5,2392.5,3.6172]
[1728055106129,2.67038,2393.3,2392.5,0.4094]
[1728055106330,0.41791,2393.0,2392.7,0.41795]
[1728055106531,0.41792,2393.0,2392.7,0.41795]
[1728055106730,4.4279,2393.2,2392.2,3.2078]
[1728055107038,4.4279,2393.2,2392.4,0.418]
[1728055107039,0.41795,2392.8,2392.4,0.418]
[1728055107229,0.41795,2392.8,2392.2,3.2078]
[1728055107428,0.41795,2392.8,2392.4,0.418]
[1728055107631,0.41794,2392.8,2392.2,3.2078]
[1728055107832,4.25258,2393.0,2392.4,0.41799]
[1728055108237,0.41796,2392.7,2392.4,0.418]
[1728055108648,0.41796,2392.7,2392.2,3.2078]
[1728055108844,0.41796,2392.7,2392.4,0.418]
[1728055109031,3.2078,2393.0,2392.2,3.2078]
[1728055109342,0.41801,2392.4,2392.2,3.2078]
[1728055110138,0.41801,2392.4,2391.7,1.04531]
[1728055110139,0.41804,2392.2,2391.9,0.41809]
[1728055110336,0.41806,2392.1,2391.8,0.4181]
[1728055110531,0.41805,2392.2,2391.9,0.41809]
[1728055110732,3.6365,2392.4,2391.9,0.41808]
[1728055110932,0.41804,2392.2,2391.9,0.41808]
[1728055111435,0.41804,2392.3,2391.9,0.41808]
[1728055111639,3.6365,2392.4,2391.7,0.4095]
[1728055111831,0.41803,2392.3,2392.0,0.41807]
[1728055112061,4.68154,2392.4,2391.7,0.4095]
[1728055112240,4.68154,2392.4,2392.0,0.41807]
[1728055112241,0.41803,2392.3,2392.0,0.41807]
[1728055112446,3.6365,2392.4,2391.9,3.2078]
[1728055112447,3.2078,2392.4,2391.9,3.2078]
[1728055112742,3.62581,2392.4,2391.9,3.2078]
[1728055113039,3.2078,2392.4,2392.1,0.41806]
[1728055113236,3.62581,2392.4,2392.2,0.41804]
[1728055113441,3.2078,2392.4,2392.3,0.41802]
[1728055113639,3.2078,2392.4,2391.9,4.25302]
[1728055113640,3.2078,2392.4,2391.9,3.2078]
[1728055113938,3.62586,2392.4,2392.0,0.41812]
[1728055114143,3.2078,2392.4,2391.9,3.2078]
[1728055114338,3.62585,2392.4,2392.2,0.41807]
[1728055114643,3.2078,2392.4,2391.9,3.2078]
[1728055114843,3.2078,2392.4,2392.3,0.41807]
[1728055115940,3.2078,2392.9,2392.3,7.3878]
[1728055116157,3.2078,2392.9,2392.3,3.2078]
[1728055116341,4.01,2392.8,2391.9,3.35262681]
[1728055116544,0.41805,2392.4,2392.3,0.41806]
[1728055116840,4.25284,2392.6,2392.0,1.0453]
[1728055116841,3.62582,2392.6,2392.0,1.0453]
[1728055117141,3.62582,2392.6,2392.5,0.41803]
[1728055117342,3.62582,2392.6,2392.3,0.41805]
[1728055117343,0.41805,2392.5,2392.3,0.41805]
[1728055117544,0.41805,2392.4,2392.3,0.41806]
[1728055117741,3.2078,2392.6,2392.0,1.0453]
[1728055117943,4.25272,2392.9,2392.6,0.418]
[1728055118136,4.25272,2392.9,2392.1,1.04526]
[1728055118137,0.41797,2392.9,2392.8,0.41798]
[1728055118441,0.4241,2393.0,2392.7,0.41799]
[1728055118642,0.4241,2393.0,2392.2,3.6132]
[1728055118840,0.41799,2392.8,2392.6,0.418]
[1728055119142,0.41804,2392.5,2392.3,0.41806]
[1728055119340,4.01,2392.8,2391.9,3.2078]
[1728055119540,0.41806,2392.4,2392.2,0.41807]
[1728055120437,0.41806,2392.4,2392.3,0.41807]
[1728055120848,3.2078,2392.6,2392.3,0.41807]
[1728055121035,3.2078,2392.6,2392.5,0.41803]
[1728055121843,0.4241,2393.0,2392.6,0.418]
[1728055121844,0.41799,2392.8,2392.6,0.418]
[1728055122153,4.04984,2393.0,2392.9,0.41796]
[1728055122354,1.5319,2393.0,2392.9,0.41796]
[1728055122647,0.41796,2392.9,2392.8,0.41797]
[1728055122844,1.94986,2393.0,2392.8,0.41797]
[1728055123046,1.5319,2393.0,2392.9,0.41796]
[1728055123239,1.5319,2393.0,2392.8,0.41797]
[1728055123439,1.94986,2393.0,2392.8,0.41797]
[1728055124447,1.5319,2393.0,2392.4,0.7744]
[1728055124645,0.41798,2392.8,2392.6,0.418]
[1728055124849,2.57678,2393.0,2392.4,0.3878]
[1728055125047,1.5319,2393.0,2392.4,0.3878]
[1728055125350,1.5319,2393.0,2392.9,0.41796]
[1728055126465,0.4023,2393.1,2393.0,0.41794]
[1728055128045,0.82023,2393.1,2393.0,0.41794]
[1728055128551,0.4023,2393.1,2393.0,0.41794]
[1728055128942,0.82023,2393.1,2393.0,0.41794]
[1728055129152,0.4066,2393.4,2393.0,4.1784]
[1728055129353,0.82448,2393.4,2393.2,0.4179]
[1728055129552,0.82448,2393.4,2393.3,0.41789]
[1728055129553,0.4066,2393.4,2393.3,0.41789]
[1728055129754,0.82447,2393.4,2393.3,0.41789]
[1728055130151,0.4066,2393.4,2393.3,0.41789]
[1728055130352,0.4066,2393.4,2393.0,1.04486]
[1728055130561,0.82448,2393.4,2393.3,0.41789]
[1728055131255,0.4066,2393.4,2393.3,0.41789]
[1728055131463,0.82447,2393.4,2393.3,0.41789]
[1728055131664,0.41789,2393.3,2392.8,4.25275]
[1728055131854,0.41793,2393.2,2393.1,0.41793]
[1728055132254,0.41793,2393.1,2393.0,0.41793]
[1728055132455,0.41792,2393.2,2393.1,0.41792]
[1728055133261,1.4513,2393.4,2392.9,1.04491]
[1728055133452,0.4179,2393.3,2393.1,0.41791]
[1728055133652,0.41789,2393.3,2393.1,0.41791]
[1728055133857,0.41791,2393.2,2393.1,0.41791]
[1728055134058,1.4513,2393.4,2392.8,4.25274]
[1728055134359,0.4066,2393.4,2392.9,1.0449]
[1728055134562,0.82449,2393.4,2393.3,0.41789]
[1728055136463,3.2078,2393.5,2393.4,0.41787]
[1728055136764,3.62566,2393.5,2393.4,0.41787]
[1728055137494,3.2078,2393.5,2393.4,0.41787]
[1728055137963,13.3862,2393.5,2393.0,0.41794]
[1728055138162,0.41796,2392.9,2392.8,0.41797]
[1728055138362,1.04483,2393.1,2392.5,1.46538]
[1728055138556,0.8454,2393.0,2392.6,1.04503]
[1728055138757,0.8454,2393.0,2392.8,0.41798]
[1728055138758,0.41796,2392.9,2392.8,0.41798]
[1728055139067,0.41798,2392.8,2392.7,0.41798]
[1728055139369,0.418,2392.7,2392.6,0.41799]
[1728055139556,0.8454,2393.0,2392.3,3.3496035]
[1728055139757,0.41797,2392.9,2392.8,0.41796]
[1728055140159,0.418,2392.7,2392.6,0.418]
[1728055140371,3.26,2392.7,2392.2,1.04517]
[1728055140580,3.67801,2392.7,2392.6,0.41801]
[1728055140763,0.41802,2392.6,2392.5,0.41802]
[1728055140964,0.41804,2392.5,2392.4,0.41804]
[1728055141164,0.41805,2392.4,2392.3,0.41805]
[1728055141667,1.45359,2392.8,2392.1,0.4177]
[1728055141870,0.41803,2392.6,2392.4,0.41804]
[1728055142066,0.41803,2392.6,2392.0,3.2078]
[1728055142067,5.06506,2392.6,2392.0,3.2078]
[1728055142260,1.04516,2392.4,2392.0,3.62592]
[1728055142461,0.41809,2392.2,2392.0,3.62591]
[1728055142662,1.23087,2392.3,2392.1,0.4181]
[1728055143067,1.23087,2392.3,2392.0,3.2078]
[1728055143482,1.23087,2392.3,2392.2,0.41808]
[1728055143772,0.8128,2392.3,2392.0,3.2078]
[1728055144175,0.41809,2392.2,2392.1,0.41809]
[1728055144880,0.8128,2392.3,2392.0,3.2078]
[1728055145475,0.41809,2392.2,2392.1,0.41809]
[1728055145670,1.23087,2392.3,2392.2,0.41808]
[1728055145881,1.23087,2392.3,2392.0,3.2078]
[1728055145882,3.62582,2392.6,2392.5,0.41803]
[1728055146374,8.43285,2392.6,2392.3,0.41807]
[1728055146567,0.41804,2392.5,2392.4,0.41803]
[1728055146767,0.418,2392.7,2392.6,0.418]
[1728055146966,0.41802,2392.6,2392.5,0.41802]
[1728055147670,1.44837,2392.8,2392.3,1.04516]
[1728055147870,0.418,2392.7,2392.6,0.41801]
[1728055148683,0.4034,2392.8,2392.3,1.04516]
[1728055148879,0.42,2392.9,2392.8,0.41798]
[1728055149171,0.83796,2392.9,2392.8,0.41798]
[1728055149679,3.2078,2393.2,2392.6,1.04504]
[1728055149867,2.73318841,2393.5,2393.4,0.41787]
[1728055150070,8.70817641,2394.2,2394.0,0.41777]
[1728055150071,2.73318841,2394.1,2394.0,0.41777]
[1728055150272,0.8365,2394.2,2393.5,4.25242]
[1728055150480,0.41777,2394.0,2393.8,0.4178]
[1728055150671,1.04444,2394.0,2393.5,3.2078]
[1728055150978,2.08904,2393.8,2392.8,3.2078]
[1728055151169,1.04465,2393.5,2392.8,3.2078]
[1728055151474,1.04471,2393.4,2392.9,0.41796]
[1728055151677,1.04471,2393.4,2392.8,3.2078]
[1728055151678,0.8468,2393.4,2392.8,3.2078]
[1728055151877,0.41791,2393.2,2393.0,0.41793]
[1728055152074,1.26468,2393.4,2393.2,0.41791]
[1728055152467,0.8468,2393.4,2392.8,4.25274]
[1728055152670,0.4264,2393.7,2392.8,4.25274]
[1728055152671,3.15101841,2393.7,2393.5,0.41784]
[1728055152870,2.73318841,2393.7,2393.1,1.04482]
[1728055153073,5.09904,2394.0,2393.2,8.27258]
[1728055153378,0.41785,2393.6,2393.3,0.4045]
[1728055153672,0.41785,2393.6,2393.4,0.41787]
[1728055153980,1.04453,2393.8,2393.4,0.41787]
[1728055154174,0.41785,2393.6,2393.4,0.41787]
[1728055154370,1.04453,2393.8,2393.3,0.4045]
[1728055154574,3.2078,2393.9,2393.3,0.4045]
[1728055154877,3.2078,2393.9,2392.8,1.04493]
[1728055154878,11.97530841,2393.8,2392.9,3.2078]
[1728055155073,0.41788,2393.4,2392.9,3.6206]
[1728055155275,0.41786,2393.5,2393.3,0.41788]
[1728055155669,1.0446,2393.6,2392.9,3.6206]
[1728055156179,0.41787,2393.4,2393.3,0.41788]
[1728055156373,0.41787,2393.4,2393.2,0.4179]
[1728055156777,0.41789,2393.3,2393.2,0.4179]
[1728055156976,1.04473,2393.3,2392.9,0.41796]
[1728055157281,0.41793,2393.1,2393.0,0.41793]
[1728055157678,0.41793,2393.1,2392.9,0.41795]
[1728055158178,0.41793,2393.1,2392.6,4.64033]
[1728055158379,0.41794,2393.0,2392.9,0.41795]
[1728055158579,0.7923,2393.2,2392.6,3.5953]
[1728055158981,0.41794,2393.0,2392.7,0.418]
[1728055159182,0.41796,2392.9,2392.8,0.41797]
[1728055159381,5.06483,2393.1,2392.6,3.2078]
[1728055159591,0.418,2392.7,2392.6,3.6258]
[1728055160180,0.41794,2393.1,2393.0,0.41794]
[1728055160683,0.41795,2393.0,2392.9,0.41795]
[1728055160875,0.41796,2392.9,2392.8,0.41797]
[1728055161390,0.41795,2393.0,2392.9,0.41795]
[1728055162191,1.21022,2393.2,2393.1,0.41793]
[1728055162482,1.21022,2393.2,2392.6,3.604]
[1728055162483,0.41795,2393.0,2392.9,0.41794]
[1728055162889,0.41794,2393.1,2393.0,0.41793]
[1728055163280,4.1784,2393.1,2392.5,0.4153]
[1728055163487,0.41792,2393.2,2393.1,0.41792]
[1728055163682,1.04473,2393.3,2392.7,0.783]
[1728055163883,0.41795,2393.0,2392.9,0.41795]
[1728055164284,0.4023,2393.2,2392.9,0.41795]
[1728055164482,0.41794,2393.0,2392.9,0.41795]
[1728055165285,0.41793,2393.1,2393.0,0.41793]
[1728055165589,1.04483,2393.1,2392.8,0.41798]
[1728055165782,0.41798,2392.9,2392.8,0.41798]
[1728055165979,0.4269,2393.1,2392.6,3.2078]
[1728055166387,0.41794,2393.0,2392.9,0.41796]
[1728055166587,0.41795,2393.0,2392.9,0.41795]
[1728055167085,0.41796,2392.9,2392.8,0.41797]
[1728055167286,0.4269,2393.1,2392.5,0.4153]
[1728055167491,0.4269,2393.1,2392.8,0.41797]
[1728055167797,0.41796,2392.9,2392.8,0.41797]
[1728055168190,0.41796,2392.9,2392.7,0.41798]
[1728055168400,0.41797,2392.9,2392.5,0.4153]
[1728055168595,1.04489,2393.0,2392.7,0.41799]
[1728055168896,1.04489,2393.0,2392.5,0.4153]
[1728055168897,0.4269,2393.1,2392.5,0.4153]
[1728055169091,0.4269,2393.1,2392.8,0.41796]
[1728055169293,1.47173,2393.1,2392.8,0.41796]
[1728055169494,0.4023,2393.2,2392.5,0.4153]
[1728055169691,0.41796,2393.0,2392.8,0.41797]
[1728055169887,2.73318841,2393.4,2393.2,0.41791]
[1728055170092,6.41103841,2393.6,2393.4,0.41787]
[1728055170295,4.59546,2393.5,2393.4,0.41787]
[1728055170490,4.1776,2393.5,2393.4,0.41787]
[1728055170699,4.1776,2393.5,2393.3,0.41789]
[1728055170895,0.41787,2393.5,2393.3,0.41789]
[1728055171496,0.41787,2393.5,2393.2,0.41791]
[1728055171693,2.73318841,2393.7,2393.1,0.3941]
[1728055171893,0.41783,2393.7,2393.5,0.41784]
[1728055172099,4.59543,2393.7,2393.5,0.41784]
[1728055172294,0.41783,2393.7,2393.5,0.41784]
[1728055172599,2.73318841,2394.0,2393.2,3.2078]
[1728055172799,2.73318841,2394.1,2393.5,1.04463]
[1728055173101,0.41777,2394.0,2393.9,0.41778]
[1728055173293,0.41777,2394.0,2393.8,0.41779]
[1728055173903,2.73318841,2394.1,2393.5,1.04463]
[1728055174099,3.2078,2394.0,2393.4,0.4098]
[1728055174302,4.01,2393.9,2393.2,3.2078]
[1728055174507,1.04466,2393.5,2392.9,0.41795]
[1728055174802,0.41793,2393.1,2392.9,0.41795]
[1728055174999,0.41792,2393.2,2393.0,0.41794]
[1728055175503,1.04473,2393.3,2392.8,0.4098]
[1728055175701,0.41791,2393.2,2393.0,0.41793]
[1728055176726,0.8041,2393.4,2393.0,0.41793]
[1728055177006,0.41791,2393.2,2393.0,0.41793]
[1728055177906,0.4179,2393.3,2392.8,0.4098]
[1728055178108,0.41792,2393.2,2393.0,0.41794]
[1728055178799,0.41793,2393.1,2392.9,0.41796]
[1728055179205,0.8041,2393.4,2392.7,3.2078]
[1728055179407,0.41792,2393.2,2392.7,3.2078]
[1728055179628,0.4179,2393.3,2392.7,4.25279]
[1728055179902,0.4179,2393.3,2393.1,0.41791]
[1728055180800,1.22198,2393.4,2393.2,0.4179]
[1728055181506,0.8041,2393.4,2393.0,0.41794]
[1728055181706,0.8041,2393.4,2392.9,1.04491]
[1728055181908,0.8041,2393.4,2393.1,0.41791]
[1728055181909,1.22198,2393.4,2393.1,0.41791]
[1728055182207,1.22198,2393.4,2393.2,0.41791]
[1728055182617,0.8041,2393.4,2392.7,3.2078]
[1728055182803,1.46263,2393.3,2392.9,0.41795]
[1728055183111,0.41793,2393.1,2392.9,0.41795]
[1728055183609,0.41795,2393.0,2392.8,0.41797]
[1728055183799,0.8041,2393.4,2392.7,3.2078]
[1728055184000,0.41789,2393.3,2393.1,0.41791]
[1728055184197,1.22198,2393.4,2393.2,0.4179]
[1728055184701,0.8041,2393.4,2393.2,0.4179]
[1728055184901,0.8041,2393.4,2393.3,0.41789]
[1728055185513,0.8041,2393.4,2393.0,1.04483]
[1728055185812,0.8041,2393.4,2392.9,1.4323]
[1728055185813,1.22197,2393.4,2393.2,0.41789]
[1728055186013,0.41785,2393.6,2393.4,0.41787]
[1728055186227,3.62565,2393.6,2393.4,0.41787]
[1728055186413,3.62565,2393.6,2393.0,3.2078]
[1728055186414,3.2078,2393.6,2393.2,0.4275]
[1728055186709,0.41787,2393.5,2393.3,0.41789]
[1728055186910,4.2524,2393.6,2393.2,0.4275]
[1728055187111,0.41788,2393.4,2393.2,0.84539]
[1728055188011,0.41788,2393.4,2393.3,0.41789]
[1728055188601,0.41788,2393.4,2393.2,0.84539]
[1728055189304,0.41788,2393.4,2393.3,0.41789]
[1728055189506,0.41787,2393.5,2393.3,0.41789]
[1728055189809,4.2524,2393.6,2393.3,0.41789]
[1728055190013,2.73318841,2393.7,2393.2,0.4275]
[1728055190313,7.03261203,2394.1,2393.9,0.41779]
[1728055190314,2.73318841,2394.0,2393.9,0.41779]
[1728055190606,1.04446,2394.0,2393.6,0.41783]
[1728055190808,0.41779,2393.9,2393.7,0.41781]
[1728055191109,2.73318841,2394.0,2393.7,0.41781]
[1728055191299,2.73318841,2394.0,2393.4,4.25248]
[1728055191603,0.41786,2393.5,2393.3,0.41787]
[1728055191807,3.26,2393.5,2393.4,0.41787]
[1728055192103,3.67786,2393.5,2393.4,0.41787]
[1728055192311,3.26,2393.5,2393.4,0.41787]
[1728055192506,3.67786,2393.5,2393.4,0.41787]
[1728055192810,0.41784,2393.6,2393.4,0.41787]
[1728055193300,0.41786,2393.5,2393.3,0.41787]
[1728055193506,0.41784,2393.6,2393.4,0.41786]
[1728055193714,0.41784,2393.6,2393.5,0.41786]
[1728055193915,0.41784,2393.6,2393.4,0.41787]
[1728055194209,3.6884,2393.7,2393.2,1.47228]
[1728055194408,3.6884,2393.7,2393.5,0.41784]
[1728055194409,0.41784,2393.6,2393.5,0.41784]
[1728055195004,7.24571841,2393.7,2393.2,1.47228]
[1728055195206,7.24571841,2393.7,2393.5,0.41784]
[1728055195408,7.24571841,2393.7,2393.2,1.47228]
[1728055195615,7.24571841,2393.7,2393.5,0.41785]
[1728055195814,10.45350841,2393.7,2393.3,1.04473]
[1728055196016,0.41784,2393.6,2393.2,1.47228]
[1728055196248,10.03568841,2393.7,2393.2,0.4275]
[1728055196514,7.24570841,2393.7,2393.6,0.41784]
[1728055196713,0.8347,2393.7,2393.6,0.41784]
[1728055197903,1.25252,2393.7,2393.3,1.04472]
[1728055198113,0.8347,2393.7,2393.6,0.41784]
[1728055198310,3.15100841,2393.8,2393.7,0.41782]
[1728055198311,2.73318841,2393.8,2393.7,0.41782]
[1728055198512,7.36797031,2394.1,2393.5,3.2078]
[1728055198513,2.73318841,2394.0,2393.5,3.2078]
[1728055198911,2.73318841,2394.0,2393.9,0.41779]
[1728055199113,7.61803841,2394.1,2393.9,0.41779]